[Event "Titled Tuesday Blitz January 17 Early 2023"]
[White "Fernandez Hernandez, Gerardo"]
[Black "Mayaud, Raphael"]
[WhiteFideId "2207400"]
[BlackFideId "627151"]
[WhiteElo "2181"]
[BlackElo "2201"]
[Result "0-1"]
[Round "11"]
[TimeControl "180+2"]
[Date "2023.01.17"]
[WhiteClock "0:00:01"]
[BlackClock "0:00:08"]

1. e4 {[%clk 0:03:00]}  c5 {[%clk 0:02:58]} 2. d3 {[%clk 0:03:00]}  e5 {[%clk 0:02:54]} 3. g3 {[%clk 0:02:58]}  Nc6 {[%clk 0:02:54]} 4. Bg2 {[%clk 0:02:58]}  d6 {[%clk 0:02:54]} 5. Nc3 {[%clk 0:02:58]}  g6 {[%clk 0:02:54]} 6. f4 {[%clk 0:02:58]}  Bg7 {[%clk 0:02:51]} 7. Nf3 {[%clk 0:02:58]}  Nge7 {[%clk 0:02:51]} 8. f5 {[%clk 0:02:53]}  gxf5 {[%clk 0:02:50]} 9. Nh4 {[%clk 0:02:53]}  f4 {[%clk 0:02:43]} 10. gxf4 {[%clk 0:02:47]}  Ng6 {[%clk 0:02:38]} 11. Nxg6 {[%clk 0:02:38]}  hxg6 {[%clk 0:02:38]} 12. Be3 {[%clk 0:02:19]}  Qh4+ {[%clk 0:02:33]} 13. Bf2 {[%clk 0:02:19]}  Qxf4 {[%clk 0:02:32]} 14. Nd5 {[%clk 0:02:18]}  Qg5 {[%clk 0:02:26]} 15. Qf3 {[%clk 0:02:06]}  Nd4 {[%clk 0:02:21]} 16. Bxd4 {[%clk 0:02:01]}  cxd4 {[%clk 0:02:13]} 17. Nc7+ {[%clk 0:01:58]}  Ke7 {[%clk 0:02:12]} 18. Nxa8 {[%clk 0:01:50]}  Bg4 {[%clk 0:02:12]} 19. Qg3 {[%clk 0:01:44]}  Bh6 {[%clk 0:01:57]} 20. O-O {[%clk 0:01:25]}  Qe3+ {[%clk 0:01:57]} 21. Qf2 {[%clk 0:01:19]}  Rxa8 {[%clk 0:01:38]} 22. Qxe3 {[%clk 0:01:07]}  dxe3 {[%clk 0:01:13]} 23. Bf3 {[%clk 0:00:58]}  e2 {[%clk 0:01:04]} 24. Bxg4 {[%clk 0:00:58]}  exf1=Q+ {[%clk 0:01:01]} 25. Rxf1 {[%clk 0:00:59]}  Be3+ {[%clk 0:00:53]} 26. Kg2 {[%clk 0:00:57]}  Rh8 {[%clk 0:00:53]} 27. c3 {[%clk 0:00:55]}  Bf4 {[%clk 0:00:51]} 28. h3 {[%clk 0:00:55]}  Kf6 {[%clk 0:00:45]} 29. d4 {[%clk 0:00:50]}  Kg5 {[%clk 0:00:45]} 30. d5 {[%clk 0:00:33]}  f5 {[%clk 0:00:44]} 31. Bf3 {[%clk 0:00:28]}  Kf6 {[%clk 0:00:43]} 32. Rf2 {[%clk 0:00:19]}  Rc8 {[%clk 0:00:32]} 33. Rc2 {[%clk 0:00:20]}  b5 {[%clk 0:00:32]} 34. b3 {[%clk 0:00:19]}  a5 {[%clk 0:00:27]} 35. c4 {[%clk 0:00:19]}  bxc4 {[%clk 0:00:26]} 36. Rxc4 {[%clk 0:00:19]}  Rxc4 {[%clk 0:00:16]} 37. bxc4 {[%clk 0:00:20]}  Ke7 {[%clk 0:00:16]} 38. Kf1 {[%clk 0:00:17]}  Be3 {[%clk 0:00:15]} 39. Ke2 {[%clk 0:00:16]}  Bc5 {[%clk 0:00:15]} 40. Kd3 {[%clk 0:00:13]}  Kf6 {[%clk 0:00:15]} 41. Ke2 {[%clk 0:00:12]}  Kg5 {[%clk 0:00:15]} 42. Kf1 {[%clk 0:00:12]}  Kf4 {[%clk 0:00:15]} 43. exf5 {[%clk 0:00:11]}  gxf5 {[%clk 0:00:15]} 44. Ke2 {[%clk 0:00:11]}  e4 {[%clk 0:00:15]} 45. Bh5 {[%clk 0:00:11]}  Kg3 {[%clk 0:00:14]} 46. Bg6 {[%clk 0:00:10]}  Kf4 {[%clk 0:00:13]} 47. h4 {[%clk 0:00:10]}  Ke5 {[%clk 0:00:09]} 48. h5 {[%clk 0:00:09]}  Kf6 {[%clk 0:00:09]} 49. Bh7 {[%clk 0:00:05]}  Kg5 {[%clk 0:00:09]} 50. Bg6 {[%clk 0:00:05]}  e3 {[%clk 0:00:06]} 51. Bh7 {[%clk 0:00:05]}  Bd4 {[%clk 0:00:06]} 52. Bg6 {[%clk 0:00:04]}  f4 {[%clk 0:00:05]} 53. Kf3 {[%clk 0:00:04]}  Be5 {[%clk 0:00:06]} 54. Bh7 {[%clk 0:00:02]}  Kxh5 {[%clk 0:00:06]} 55. Be4 {[%clk 0:00:02]}  Kg5 {[%clk 0:00:06]} 56. Bh7 {[%clk 0:00:02]}  Kf6 {[%clk 0:00:06]} 57. Bd3 {[%clk 0:00:02]}  Ke7 {[%clk 0:00:06]} 58. Bc2 {[%clk 0:00:02]}  Kd7 {[%clk 0:00:07]} 59. Ba4+ {[%clk 0:00:03]}  Kc7 {[%clk 0:00:07]} 60. Bb5 {[%clk 0:00:03]}  Kb6 {[%clk 0:00:08]} 61. Ke2 {[%clk 0:00:03]}  Kc5 {[%clk 0:00:08]} 62. Kf3 {[%clk 0:00:03]}  Kd4 {[%clk 0:00:08]} 63. Ba6 {[%clk 0:00:01]}  Kc3 {[%clk 0:00:08]} 64. Bb5 {[%clk 0:00:01]}  Kd2 {[%clk 0:00:08]} 0-1